fUST/lending_fUST_20250521
["ID","MTS","AMOUNT","RATE_DAILY","PERIOD"]
[361756286,1747762240066,-430.0,0.00016438,2]
[361756287,1747762240077,-450.0,0.00016438,2]
[361756288,1747762240086,-450.0,0.00016438,2]
[361756289,1747762240095,-453.57576832,0.00016438,2]
[361756290,1747762240105,-496.0,0.00016438,2]
[361756291,1747762240114,-450.0,0.00016438,2]
[361756292,1747762240123,-450.0,0.00016438,2]
[361756293,1747762240133,-430.0,0.00016438,2]
[361756294,1747762240143,-430.0,0.00016438,2]
[361756295,1747762240155,-450.0,0.00016438,2]
[361756296,1747762240165,-450.0,0.00016438,2]
[361756298,1747762240174,-450.0,0.00016438,2]
[361756299,1747762240184,-450.0,0.00016438,2]
[361756300,1747762240194,-490.01,0.00016438,2]
[361756301,1747762240205,-450.0,0.00016438,2]
[361756302,1747762240215,-459.35,0.00016438,2]
[361756304,1747762240224,-450.0,0.00016438,2]
[361756305,1747762240234,-430.0,0.00016438,2]
[361756306,1747762240244,-450.0,0.00016438,2]
[361756307,1747762240254,-430.0,0.00016438,2]
[361756308,1747762240263,-450.0,0.00016438,2]
[361756309,1747762240274,-384.555376,0.00016438,2]
[361756311,1747762240283,-450.0,0.00016438,2]
[361756312,1747762240295,-430.0,0.00016438,2]
[361756313,1747762240305,-514.57,0.00016438,2]
[361756314,1747762240318,-450.0,0.00016438,2]
[361756316,1747762240362,-450.0,0.00016438,2]
[361756317,1747762240372,-450.0,0.00016438,2]
[361756318,1747762240382,-450.0,0.00016438,2]
[361756319,1747762240394,-450.0,0.00016438,2]
[361756320,1747762240404,-384.555376,0.00016438,2]
[361756321,1747762240413,-450.0,0.00016438,2]
[361756322,1747762240422,-450.0,0.00016438,2]
[361756323,1747762240432,-400.0,0.00016438,2]
[361756324,1747762240442,-475.69,0.00016438,2]
[361756325,1747762240453,-450.0,0.00016438,2]
[361756326,1747762240462,-450.0,0.00016438,2]
[361756327,1747762240472,-500.87,0.00016438,2]
[361756328,1747762240481,-450.93010816,0.00016438,2]
[361756329,1747762240491,-500.0,0.00016438,2]
[361756330,1747762240500,-153.3,0.00016712,2]
[361756331,1747762240509,-332.99746901,0.00016712,2]
[361756332,1747762240518,-166.82,0.00016712,2]
[361756334,1747762240528,-164.69,0.00016712,2]
[361756336,1747762240538,-153.62,0.00016712,2]
[361756337,1747762240547,-331.61,0.00016712,2]
[361756338,1747762240556,-189.62,0.00016712,2]
[361756339,1747762240565,-470.0,0.00016712,2]
[361756340,1747762240576,-470.0,0.00016712,2]
[361756341,1747762240585,-470.0,0.00016712,2]
[361756342,1747762240595,-491.39,0.00016712,2]
[361756343,1747762240604,-470.0,0.00016712,2]
[361756344,1747762240614,-520.0,0.00016712,2]
[361756345,1747762240623,-151.0,0.00016712,2]
[361756346,1747762240633,-151.0,0.00016712,2]
[361756347,1747762240644,-166.73,0.00016712,2]
[361756348,1747762240653,-248.39,0.00016712,2]
[361756349,1747762240663,-376.46,0.00016712,2]
[361756350,1747762240673,-151.0,0.00016712,2]
[361756351,1747762240683,-151.0,0.00016712,2]
[361756352,1747762240694,-220.12,0.00016712,2]
[361756353,1747762240704,-430.0,0.00016712,2]
[361756354,1747762240713,-385.66,0.00016712,2]
[361756355,1747762240723,-216.03,0.00016712,2]
[361756356,1747762240732,-151.0,0.00016712,2]
[361756357,1747762240742,-308.76,0.00016712,2]
[361756358,1747762240751,-430.0,0.00016712,2]
[361756359,1747762240761,-740.732304,0.00016712,2]
[361756360,1747762240771,-740.732304,0.00016712,2]
[361756361,1747762240781,-430.0,0.00016712,2]
[361756362,1747762240790,-469.4,0.00016712,2]
[361756363,1747762240805,-430.0,0.00016712,2]
[361756364,1747762240816,-454.44,0.00016712,2]
[361756365,1747762240825,-430.0,0.00016712,2]
[361756366,1747762240834,-430.0,0.00016712,2]
[361756367,1747762240844,-246.44,0.00016712,2]
[361756368,1747762240853,-430.0,0.00016712,2]
[361756369,1747762240863,-151.0,0.00016712,2]
[361756370,1747762240873,-430.0,0.00016712,2]
[361756371,1747762240884,-430.0,0.00016712,2]
[361756372,1747762240894,-430.0,0.00016712,2]
[361756373,1747762240903,-209.45,0.00016712,2]
[361756374,1747762240913,-430.0,0.00016712,2]
[361756375,1747762240922,-497.81,0.00016712,2]
[361756376,1747762240931,-163.15,0.00016712,2]
[361756377,1747762240941,-213.82,0.00016712,2]
[361756378,1747762240950,-384.555376,0.00016712,2]
[361756379,1747762240959,-430.0,0.00016712,2]
[361756380,1747762240969,-384.555376,0.00016712,2]
[361756381,1747762240979,-420.0,0.00016754,2]
[361756382,1747762240988,-192.0,0.00016768,2]
[361756383,1747762240998,-820.45495924,0.000169,2]
[361756384,1747762241008,-430.0,0.00016986,2]
[361756385,1747762241017,-430.0,0.00016986,2]
[361756386,1747762241026,-430.0,0.00016986,2]
[361756387,1747762241036,-430.0,0.00016986,2]
[361756388,1747762241045,-555.66,0.00016986,2]
[361756389,1747762241055,-240.29,0.00016986,2]
[361756390,1747762241064,-254.97,0.00016986,2]
[361756391,1747762241074,-430.0,0.00016986,2]
[361756392,1747762241083,-561.37,0.00016986,2]
[361756393,1747762241092,-474.92,0.00016986,2]
[361756394,1747762241102,-430.0,0.00016986,2]
[361756395,1747762241112,-211.77,0.00016986,2]
[361756396,1747762241122,-500.0,0.00017007,2]
[361756397,1747762241131,-500.0,0.00017209,2]
[361756398,1747762241141,-500.0,0.00017209,2]
[361756399,1747762241150,-820.45495917,0.0001721,2]
[361756400,1747762241159,-430.0,0.0001726,2]
[361756401,1747762241168,-430.0,0.0001726,2]
[361756402,1747762241178,-430.0,0.0001726,2]
[361756403,1747762241187,-430.0,0.0001726,2]
[361756404,1747762241197,-430.0,0.0001726,2]
[361756405,1747762241206,-430.0,0.0001726,2]
[361756406,1747762241216,-151.0,0.00017446,2]
[361756407,1747762241225,-207.4,0.00017446,2]
[361756408,1747762241235,-151.0,0.00017446,2]
[361756409,1747762241245,-194.08542105,0.00017446,2]
[361756410,1747762241254,-151.0,0.00017446,2]
[361756411,1747762241267,-820.45495917,0.00017521,2]
[361756412,1747762241276,-151.0,0.00017521,2]
[361756413,1747762241286,-156.445889,0.00017534,2]
[361756414,1747762241296,-151.0,0.00017534,2]
[361756415,1747762241306,-151.0,0.00017534,2]
[361756416,1747762241316,-151.0,0.00017534,2]
[361756417,1747762241326,-430.0,0.00017534,2]
[361756418,1747762241336,-430.0,0.00017534,2]
[361756419,1747762241345,-546.42,0.00017534,2]
[361756420,1747762241355,-430.0,0.00017534,2]
[361756421,1747762241366,-430.0,0.00017534,2]
[361756422,1747762241375,-430.0,0.00017534,2]
[361756423,1747762241384,-160.0,0.00017681,2]
[361756424,1747762241394,-422.65292303,0.00017681,2]
[361756425,1747762241404,-160.0,0.00017681,2]
[361756426,1747762241413,-1928.93896493,0.00017714,2]
[361756427,1747762241423,-3025.56,0.00017795,3]
[361756428,1747762241432,-2017.04,0.00017795,3]
[361756429,1747762241442,-1008.52,0.00017795,3]
[361756430,1747762241451,-504.26,0.00017795,3]
[361756431,1747762241462,-430.0,0.00017808,2]
[361756432,1747762241472,-430.0,0.00017808,2]
[361756433,1747762241482,-430.0,0.00017808,2]
[361756434,1747762241492,-434.23,0.00017808,2]
[361756435,1747762241502,-393.6,0.00017808,2]
[361756436,1747762241513,-820.45495917,0.00017831,2]
[361756437,1747762241523,-500.0,0.00017903,2]
[361756438,1747762241533,-430.0,0.00018082,2]
[361756439,1747762241542,-430.0,0.00018082,2]
[361756440,1747762241552,-430.0,0.00018082,2]
[361756441,1747762241561,-150.76412936,0.00018212,2]
[361756442,1747762241570,-587.0,0.0001833,2]
[361756443,1747762241580,-430.0,0.00018356,2]
[361756444,1747762241590,-430.0,0.00018356,2]
[361756445,1747762241600,-430.0,0.00018356,2]
[361756446,1747762241611,-820.45495917,0.00018452,2]
[361756447,1747762241622,-430.0,0.0001863,2]
[361756448,1747762241632,-430.0,0.0001863,2]
[361756449,1747762241642,-430.0,0.0001863,2]
[361756450,1747762241653,-820.45495917,0.00018762,2]
[361756451,1747762241663,-500.0,0.00018798,2]
[361756452,1747762241674,-8542.42502864,0.000189,2]
[361756453,1747762241684,-913.894364,0.00018904,2]
[361756454,1747762241694,-913.894364,0.00018904,2]
[361756455,1747762241704,-151.0,0.00018904,2]
[361756456,1747762241713,-430.0,0.00018904,2]
[361756457,1747762241724,-430.0,0.00018904,2]
[361756458,1747762241735,-207.99,0.00018904,2]
[361756459,1747762241744,-404.0,0.00019013,2]
[361756460,1747762241755,-820.45495917,0.00019072,2]
[361756461,1747762241765,-1928.93896493,0.0001909,2]
[361756462,1747762241775,-399.74,0.00019178,2]
[361756463,1747762241785,-430.0,0.00019178,2]
[361756464,1747762241796,-270.945573,0.00019178,2]
[361756465,1747762241810,-820.45495917,0.00019383,2]
[361756466,1747762241820,-430.0,0.00019452,2]
[361756467,1747762241830,-820.45495917,0.00019693,2]
[361756468,1747762241841,-430.0,0.00019726,2]
[361756469,1747762241852,-500.0,0.00019738,2]
[361756470,1747762241862,-430.0,0.0002,2]
[361756471,1747762241873,-4000.0,0.0002,4]
[361756472,1747762241883,-820.45495917,0.00020003,2]
[361756473,1747762241893,-823.0,0.00020055,2]
[361756474,1747762241903,-859.3805838,0.00020059,2]
[361756475,1747762241913,-161.730128,0.00020097,4]
[361756476,1747762241923,-158.40173,0.00020097,4]
[361756477,1747762241934,-212.764311,0.00020187,2]
[361756478,1747762241943,-430.0,0.00020273,2]
[361756479,1747762241953,-820.45495917,0.00020314,3]
[361756480,1747762241963,-151.0,0.00020435,2]
[361756481,1747762241973,-151.0,0.00020435,2]
[361756482,1747762241983,-166.075718,0.00020435,2]
[361756483,1747762241994,-151.0,0.00020435,2]
[361756484,1747762242005,-166.075718,0.00020435,2]
[361756485,1747762242015,-301.57317,0.00020435,2]
[361756486,1747762242025,-301.57317,0.00020435,2]
[361756487,1747762242035,-779.8,0.00020444,2]
[361756488,1747762242045,-1985.59,0.00020444,2]
[361756489,1747762242055,-1100.0,0.00020445,2]
[361756490,1747762242065,-1928.93896493,0.00020466,2]
[361756491,1747762242075,-150.76412936,0.00020498,2]
[361756492,1747762242084,-430.0,0.00020547,2]
[361756493,1747762242094,-331.368,0.00020583,2]
[361756494,1747762242104,-1000.0,0.00020596,6]
[361756495,1747762242114,-820.45495917,0.00020624,3]
[361756496,1747762242124,-151.0,0.00020724,2]
[361756497,1747762242133,-500.0,0.00020724,2]
[361756498,1747762242144,-500.0,0.00020794,2]
[361756499,1747762242154,-500.0,0.00020794,2]
[361756500,1747762242163,-779.8,0.00020795,2]
[361756501,1747762242173,-1985.59,0.00020795,2]
[361756502,1747762242183,-500.0,0.00020795,2]
[361756503,1747762242192,-151.0,0.00020795,2]
[361756504,1747762242201,-151.0,0.00020795,2]
[361756505,1747762242211,-151.0,0.00020795,2]
[361756506,1747762242220,-151.0,0.00020795,2]
[361756507,1747762242229,-740.732304,0.00020795,2]
[361756508,1747762242239,-740.732304,0.00020795,2]
[361756509,1747762242248,-384.555376,0.00020795,2]
[361756510,1747762242258,-384.555376,0.00020795,2]
[361756511,1747762242267,-12007.85992729,0.00020796,2]
[361756512,1747762242401,-10275.3947831,0.00020796,2]
[361756513,1747762242410,-242.910559,0.00020796,2]
[361756514,1747762242422,-151.0,0.00020796,2]
[361756515,1747762242432,-151.0,0.00020796,2]
[361756516,1747762242441,-151.0,0.00020796,2]
[361756517,1747762242452,-430.0,0.00020821,2]
[361756518,1747762242463,-820.45495917,0.00020934,4]
[361756519,1747762242474,-779.8,0.00020999,2]
[361756520,1747762242484,-1985.59,0.00020999,2]
[361756521,1747762242494,-20000.0,0.00021,7]
[361756522,1747762242505,-151.0,0.00021,2]
[361756523,1747762242515,-913.894364,0.00021,2]
[361756524,1747762242526,-913.894364,0.00021,2]
[361756525,1747762242536,-151.0,0.00021,2]
[361756526,1747762242546,-151.0,0.00021,2]
[361756527,1747762242556,-151.0,0.00021,2]
[361756528,1747762242566,-5000.0,0.00021026,2]
[361756529,1747762242577,-499.27,0.00021095,2]
[361756530,1747762242587,-500.0,0.00021139,2]
[361756531,1747762242597,-160.0,0.00021139,2]
[361756532,1747762242607,-151.0,0.0002114,2]
[361756533,1747762242618,-151.600345,0.0002114,2]
[361756534,1747762242627,-820.45495917,0.00021245,4]
[361756535,1747762242637,-482.746278,0.00021407,2]
[361756536,1747762242647,-1100.0,0.00021541,2]
[361756537,1747762242657,-151.586318,0.00021541,2]
[361756538,1747762242668,-151.0,0.00021541,2]
[361756539,1747762242679,-166.075718,0.00021541,2]
[361756540,1747762242688,-151.0,0.00021541,2]
[361756541,1747762242698,-166.075718,0.00021541,2]
[361756542,1747762242708,-301.57317,0.00021541,2]
[361756543,1747762242718,-301.57317,0.00021541,2]
[361756544,1747762242728,-820.45495917,0.00021555,5]
[361756545,1747762242738,-779.8,0.00021642,2]
[361756546,1747762242748,-1985.59,0.00021642,2]
[361756547,1747762242758,-151.0,0.00021642,2]
[361756548,1747762242768,-12500.0,0.00021643,2]
[361756549,1747762242779,-151.0,0.00021643,2]
[361756550,1747762242789,-151.0,0.00021643,2]
[361756551,1747762242803,-151.0,0.00021643,2]
[361756553,1747762242813,-151.0,0.00021643,2]
[361756555,1747762242823,-740.732304,0.00021643,2]
[361756557,1747762242833,-740.732304,0.00021643,2]
[361756559,1747762242843,-384.555376,0.00021643,2]
[361756561,1747762242853,-384.555376,0.00021643,2]
[361756563,1747762242863,-732.0,0.000218,2]
[361756565,1747762242873,-1928.93896493,0.00021842,2]
[361756566,1747762242883,-151.0,0.00021865,2]
[361756567,1747762242894,-820.45495917,0.00021866,6]
[361756568,1747762242904,-151.0,0.00021885,2]
[361756569,1747762242914,-779.8,0.00021899,2]
[361756570,1747762242924,-1985.59,0.00021899,2]
[361756573,1747762242934,-500.0,0.00021899,2]
[361756575,1747762242943,-151.0,0.000219,2]
[361756577,1747762242953,-277.1945,0.000219,2]
[361756578,1747762242963,-151.0,0.000219,2]
[361756580,1747762242973,-450.0,0.00021917,2]
[361756582,1747762242983,-151.847228,0.00021942,7]
[361756583,1747762242993,-151.0,0.00021942,7]
[361756584,1747762243002,-740.732304,0.00021942,2]
[361756585,1747762243012,-740.732304,0.00021942,2]
[361756586,1747762243022,-1152.0,0.00021942,2]
[361756587,1747762243032,-384.555376,0.00021942,7]
[361756589,1747762243042,-384.555376,0.00021942,7]
[361756591,1747762243052,-200.0,0.0002195,3]
[361756593,1747762243061,-500.0,0.00021973,2]
[361756595,1747762243071,-151.0,0.00021973,7]
[361756596,1747762243082,-500.0,0.00021998,2]
[361756597,1747762243091,-779.8,0.00021999,2]
[361756598,1747762243101,-779.8,0.00021999,2]
[361756599,1747762243112,-779.8,0.00021999,2]
[361756600,1747762243123,-779.8,0.00021999,2]
[361756601,1747762243132,-779.8,0.00021999,2]
[361756602,1747762243142,-779.8,0.00021999,2]
[361756604,1747762243151,-779.8,0.00021999,2]
[361756605,1747762243162,-779.8,0.00021999,2]
[361756606,1747762243174,-779.8,0.00021999,2]
[361756607,1747762243184,-779.8,0.00021999,2]
[361756608,1747762243194,-779.8,0.00021999,2]
[361756609,1747762243203,-779.8,0.00021999,2]
[361756610,1747762243213,-779.95,0.00021999,2]
[361756611,1747762243223,-1985.59,0.00021999,2]
[361756612,1747762243233,-1985.59,0.00021999,2]
[361756613,1747762243243,-1985.59,0.00021999,2]
[361756614,1747762243253,-1985.59,0.00021999,2]
[361756615,1747762243264,-1985.59,0.00021999,2]
[361756617,1747762243274,-1985.59,0.00021999,2]
[361756619,1747762243284,-1985.59,0.00021999,2]
[361756620,1747762243294,-1985.59,0.00021999,2]
[361756621,1747762243304,-1985.59,0.00021999,2]
[361756622,1747762243314,-1985.59,0.00021999,2]
[361756623,1747762243324,-1985.59,0.00021999,2]
[361756624,1747762243334,-1985.59,0.00021999,2]
[361756625,1747762243344,-1985.82851663,0.00021999,2]
[361756626,1747762243356,-500.0,0.00021999,2]
[361756627,1747762243368,-500.0,0.00021999,2]
[361756628,1747762243378,-500.0,0.00021999,2]
[361756629,1747762243388,-500.0,0.00021999,2]
[361756630,1747762243398,-596.24,0.00021999,2]
[361756631,1747762243409,-913.894364,0.00021999,7]
[361756632,1747762243419,-913.894364,0.00021999,7]
[361756633,1747762243430,-151.0,0.00021999,7]
[361756634,1747762243440,-151.0,0.00021999,7]
[361756635,1747762243450,-166.075718,0.00021999,7]
[361756636,1747762243461,-151.0,0.00021999,7]
[361756637,1747762243470,-166.075718,0.00021999,7]
[361756638,1747762243480,-301.57317,0.00021999,7]
[361756639,1747762243491,-301.57317,0.00021999,7]
[361756640,1747762243501,-3543.936386,0.00022,2]
[361756641,1747762243511,-500.0,0.00022,2]
[361756642,1747762243520,-250678.78063804,0.00022,2]
[361756643,1747762243531,-2000.0,0.00022,2]
[361756644,1747762243543,-151.0,0.00022,7]
[361756645,1747762243553,-154.810056,0.00022,7]
[361756646,1747762243563,-151.0,0.00022,7]
[361756647,1747762243573,-151.0,0.00022,7]
[361756648,1747762243583,-151.0,0.00022,7]
[361756649,1747762243593,-151.0,0.00022,7]
[361756650,1747762243603,-151.0,0.00022,7]
[361756651,1747762243619,-151.0,0.00022,7]
[361756652,1747762243631,-151.0,0.00022,7]
[361756653,1747762243643,-173.888857,0.00022,7]
[361756654,1747762243654,-151.0,0.00022,7]
[361756655,1747762243832,-151.0,0.00022,7]
[361756656,1747762243841,-151.0,0.00022,7]
[361756657,1747762243851,-151.0,0.00022,7]
[361756658,1747762243858,-151.0,0.00022,7]
[361756659,1747762243876,-151.0,0.00022,7]
[361756660,1747762243885,-151.0,0.00022,7]
[361756661,1747762243894,-151.0,0.00022,7]
[361756662,1747762243904,-151.0,0.00022,7]
[361756663,1747762243914,-215.257878,0.00022,7]
[361756664,1747762243921,-151.0,0.00022,7]
[361756665,1747762243930,-151.0,0.00022,7]
[361756666,1747762243938,-251.0,0.00022,7]
[361756667,1747762243946,-151.0,0.00022,7]
[361756668,1747762243953,-151.0,0.00022,7]
[361756669,1747762243960,-151.0,0.00022,7]
[361756670,1747762243969,-151.0,0.00022,7]
[361756671,1747762243976,-151.0,0.00022,7]
[361756672,1747762243984,-151.0,0.00022,7]
[361756673,1747762243992,-151.0,0.00022,7]
[361756674,1747762244001,-151.0,0.00022,7]
[361756675,1747762244009,-151.0,0.00022,7]
[361756676,1747762244017,-151.0,0.00022,7]
[361756677,1747762244025,-151.0,0.00022,2]
[361756678,1747762244032,-151.0,0.00022,2]
[361756679,1747762244040,-151.0,0.00022,7]
[361756680,1747762244048,-151.0,0.00022,7]
[361756681,1747762244057,-151.0,0.00022,7]
[361756682,1747762244066,-163.566025,0.00022,7]
[361756683,1747762244074,-163.566025,0.00022,7]
[361756684,1747762244084,-228.984425,0.00022,7]
[361756685,1747762244092,-163.566025,0.00022,7]
[361756686,1747762244101,-163.566025,0.00022,7]
[361756687,1747762244108,-151.0,0.00022,7]
[361756688,1747762244121,-151.0,0.00022,7]
[361756689,1747762244129,-151.0,0.00022,7]
[361756690,1747762244138,-151.0,0.00022,7]
[361756691,1747762244146,-151.0,0.00022,7]
[361756692,1747762244154,-151.0,0.00022,7]
[361756693,1747762244163,-151.0,0.00022,7]
[361756694,1747762244173,-151.0,0.00022,7]
[361756695,1747762244189,-153.68077,0.00022,7]
[361756696,1747762244196,-153.68077,0.00022,7]
[361756697,1747762244204,-153.68077,0.00022,7]
[361756698,1747762244213,-153.68077,0.00022,7]
[361756699,1747762244222,-151.0,0.00022,7]
[361756700,1747762244229,-151.0,0.00022,7]
[361756701,1747762244238,-151.0,0.00022,7]
[361756702,1747762244248,-913.894364,0.00022,7]
[361756703,1747762244258,-913.894364,0.00022,7]
[361756704,1747762244268,-913.894364,0.00022,7]
[361756705,1747762244277,-913.894364,0.00022,7]
[361756706,1747762244287,-151.0,0.00022,7]
[361756707,1747762244296,-151.0,0.00022,7]
[361756708,1747762244306,-151.0,0.00022,7]
[361756709,1747762244315,-151.0,0.00022,7]
[361756710,1747762244325,-166.075718,0.00022,7]
[361756711,1747762244335,-166.075718,0.00022,7]
[361756712,1747762244344,-151.0,0.00022,7]
[361756713,1747762244354,-151.0,0.00022,7]
[361756714,1747762244366,-151.0,0.00022,7]
[361756715,1747762244377,-151.0,0.00022,7]
[361756716,1747762244386,-166.075718,0.00022,7]
[361756717,1747762244396,-166.075718,0.00022,7]
[361756718,1747762244405,-151.0,0.00022,7]
[361756719,1747762244415,-263.263703,0.00022,7]
[361756720,1747762244426,-151.0,0.00022,7]
[361756721,1747762244436,-151.0,0.00022,7]
[361756722,1747762244447,-244.302,0.00022,7]
[361756723,1747762244457,-301.57317,0.00022,7]
[361756724,1747762244466,-301.57317,0.00022,7]
[361756725,1747762244476,-301.57317,0.00022,7]
[361756726,1747762244487,-301.57317,0.00022,7]
[361756727,1747762244496,-151.0,0.00022,7]
[361756728,1747762244506,-740.732304,0.00022,2]
[361756729,1747762244517,-740.732304,0.00022,2]
[361756730,1747762244527,-384.555376,0.00022,7]
[361756731,1747762244542,-384.555376,0.00022,7]
[361756732,1747762244552,-404.0,0.00022013,2]
[361756733,1747762244562,-820.45495917,0.00022176,6]
[361756734,1747762244571,-600.0,0.00022181,2]
[361756735,1747762244581,-500.0,0.00022181,2]
[361756736,1747762244590,-10000.0,0.000222,7]
[361756737,1747762244599,-151.0,0.000222,7]
[361756738,1747762244609,-297.730003,0.000222,7]
[361756739,1747762244621,-297.730003,0.000222,7]
[361756740,1747762244631,-151.0,0.000222,7]
[361756741,1747762244640,-151.0,0.000222,7]
[361756742,1747762244650,-151.0,0.000222,7]
[361756743,1747762244660,-151.0,0.000222,8]
[361756744,1747762244670,-960.5,0.0002237,3]
[361756745,1747762244680,-960.5,0.0002247,2]
[361756746,1747762244689,-820.45495917,0.00022486,7]
[361756747,1747762244699,-4000.0,0.000225,4]
[361756748,1747762244709,-1000.0,0.00022521,2]
[361756749,1747762244719,-960.5,0.0002257,7]
[361756750,1747762244729,-270.945573,0.00022603,2]
[361756751,1747762244738,-1100.0,0.00022637,2]
[361756752,1747762244748,-30232.55493888,0.0002266,2]
[361756753,1747762244760,-151.0,0.0002266,7]
[361756754,1747762244770,-151.0,0.0002266,7]
[361756755,1747762244779,-151.0,0.0002266,7]
[361756756,1747762244790,-151.0,0.0002266,7]
[361756757,1747762244802,-151.0,0.0002266,7]
[361756758,1747762244814,-151.0,0.0002266,7]
[361756759,1747762244823,-280.909318,0.0002266,7]
[361756760,1747762244834,-151.0,0.0002266,7]
[361756761,1747762244845,-297.730003,0.0002266,7]
[361756762,1747762244854,-151.0,0.0002266,7]
[361756763,1747762244866,-297.730003,0.0002266,7]
[361756764,1747762244876,-151.0,0.0002266,7]
[361756765,1747762244886,-151.0,0.0002266,7]
[361756766,1747762244896,-151.0,0.0002266,7]
[361756767,1747762244905,-151.0,0.0002266,7]
[361756768,1747762244914,-151.0,0.0002266,7]
[361756769,1747762244924,-151.0,0.0002266,7]
[361756770,1747762244933,-151.0,0.0002266,7]
[361756771,1747762244944,-151.0,0.0002266,2]
[361756772,1747762244955,-151.0,0.0002266,7]
[361756773,1747762244964,-163.566025,0.0002266,7]
[361756774,1747762244974,-163.566025,0.0002266,7]
[361756775,1747762244984,-151.0,0.0002266,7]
[361756776,1747762244995,-151.0,0.0002266,7]
[361756777,1747762245005,-151.0,0.0002266,7]
[361756778,1747762245014,-151.0,0.0002266,7]
[361756779,1747762245023,-153.68077,0.0002266,7]
[361756780,1747762245032,-153.68077,0.0002266,7]
[361756781,1747762245041,-151.0,0.0002266,7]
[361756782,1747762245052,-913.894364,0.0002266,7]
[361756783,1747762245061,-913.894364,0.0002266,7]
[361756784,1747762245071,-197.473619,0.0002266,7]
[361756785,1747762245081,-151.0,0.0002266,7]
[361756786,1747762245091,-166.075718,0.0002266,7]
[361756787,1747762245101,-151.0,0.0002266,7]
[361756788,1747762245110,-151.0,0.0002266,7]
[361756789,1747762245120,-166.075718,0.0002266,7]
[361756790,1747762245130,-151.0,0.0002266,7]
[361756791,1747762245139,-301.57317,0.0002266,7]
[361756792,1747762245150,-301.57317,0.0002266,7]
[361756793,1747762245159,-211.293112,0.0002266,7]
[361756794,1747762245168,-740.732304,0.0002266,2]
[361756795,1747762245178,-740.732304,0.0002266,2]
[361756796,1747762245187,-384.555376,0.0002266,7]
[361756797,1747762245196,-384.555376,0.0002266,7]
[361756798,1747762245206,-960.5,0.0002267,3]
[361756799,1747762245216,-1200.0,0.00022729,2]
[361756800,1747762245227,-1000.0,0.00022729,2]
[361756801,1747762245239,-960.5,0.0002277,7]
[361756802,1747762245251,-150.76412936,0.00022784,2]
[361756803,1747762245261,-820.45495917,0.00022797,7]
[361756804,1747762245270,-960.5,0.0002287,6]
[361756805,1747762245279,-789.752413,0.00022922,2]
[361756806,1747762245288,-960.5,0.0002297,5]
[361756807,1747762245297,-250.97730233,0.00023,2]
[361756808,1747762245307,-250.0,0.00023,2]
[361756809,1747762245316,-250.0,0.00023,2]
[361756810,1747762245325,-250.0,0.00023,2]
[361756811,1747762245335,-185.30753123,0.00023,2]